bitfinex-derivatives/quotes_BNBF0:USTF0_20250908
["timestamp","ask_amount","ask_price","bid_price","bid_amount"]
[1757320523007,0.5,877.11,874.7,1.5059524]
[1757320523210,0.478,876.84,874.55,1.5059524]
[1757320523411,0.478,876.79,874.45,1.5059524]
[1757320523611,0.447,876.71,874.57,1.5059524]
[1757320523813,0.441,876.76,874.29,1.5059524]
[1757320524009,0.5,876.76,874.36,1.5059524]
[1757320524213,0.478,876.54,874.29,1.5059524]
[1757320524410,0.478,876.74,874.29,1.5059524]
[1757320524613,0.395,876.34,874.17,1.5059524]
[1757320524814,0.5,876.6,874.12,1.5059524]
[1757320525014,0.421,876.6,873.98,1.5059524]
[1757320525211,0.478,876.69,873.92,1.5059524]
[1757320525414,0.478,876.69,873.84,1.5059524]
[1757320525611,0.5,876.67,874.09,1.5059524]
[1757320525814,0.5,876.67,874.06,1.5059524]
[1757320526013,0.5,876.67,874.02,1.5059524]
[1757320526212,0.5,876.67,873.95,1.5059524]
[1757320526417,0.452,876.7,874.18,1.5059524]
[1757320526613,0.478,876.7,874.1,1.5059524]
[1757320526912,0.5,876.67,874.06,1.5059524]
[1757320527113,0.415,876.66,873.94,1.5059524]
[1757320527315,0.395,876.33,873.88,1.5059524]
[1757320527517,0.452,876.31,873.88,1.5059524]
[1757320528018,0.452,876.31,873.82,1.5059524]
[1757320528413,0.452,876.31,873.75,1.5059524]
[1757320528618,0.5,876.5,873.72,1.5059524]
[1757320528818,0.417,876.5,873.6,1.5059524]
[1757320529118,0.417,876.5,873.59,1.5059524]
[1757320529419,0.423,876.15,873.46,1.5059524]
[1757320529618,0.423,876.15,873.5,1.5059524]
[1757320529815,0.5,876.28,873.4,1.5059524]
[1757320530015,0.5,876.28,873.23,1.5059524]
[1757320530218,0.5,876.28,873.16,1.5059524]
[1757320530514,0.255,876.19,873.01,1.5059524]
[1757320530720,0.34,876.08,873.04,1.5059524]
[1757320531019,0.425,876.08,873.08,1.5059524]
[1757320531319,0.5,876.08,873.14,1.5059524]
[1757320531520,0.369,876.08,873.29,1.5059524]
[1757320532018,0.369,876.08,873.18,1.5059524]
[1757320532215,0.397,876.08,873.15,1.5059524]
[1757320532415,0.369,876.08,873.25,1.5059524]
[1757320532621,0.395,876.17,873.28,1.5059524]
[1757320532822,0.395,876.1,873.27,1.5059524]
[1757320533119,0.5,876.1,873.56,0.974372]
[1757320533320,0.5,876.1,873.54,0.974372]
[1757320533518,0.5,876.1,873.53,0.974372]
[1757320533921,0.5,876.1,873.4,0.974372]
[1757320534121,0.394,875.8,873.4,0.974372]
[1757320534418,0.34,876.07,873.34,0.974372]
[1757320534618,0.424,876.07,873.35,0.974372]
[1757320534820,0.368,876.07,873.34,0.974372]
[1757320535020,0.312,876.07,873.38,0.974372]
[1757320535222,0.34,876.2,873.63,0.974372]
[1757320535419,0.34,876.2,873.54,0.974372]
[1757320535720,0.5,876.28,873.54,0.974372]
[1757320535925,0.253,876.04,873.48,0.974372]
[1757320536118,0.254,876.05,873.4,0.974372]
[1757320536322,0.394,875.8,873.4,0.974372]
[1757320536519,0.394,875.8,873.26,0.974372]
[1757320536818,0.422,875.71,873.19,0.974372]
[1757320537022,0.5,875.68,873.09,0.974372]
[1757320537324,0.479,875.65,873.01,0.974372]
[1757320537521,0.5,875.67,872.79,0.974372]
[1757320537823,0.422,875.33,872.78,0.974372]
[1757320538024,0.394,875.3,872.7,0.974372]
[1757320538218,0.482,875.51,872.56,0.974372]
[1757320538423,0.482,875.51,872.53,0.974372]
[1757320538622,0.481,875.35,872.46,0.974372]
[1757320538824,0.5,875.35,872.42,0.974372]
[1757320539022,1.0102722,878.94,870.71,3.5646419]
[1757320539023,0.479,874.97,872.15,0.974372]
[1757320539226,0.5,874.94,872.03,0.974372]
[1757320539525,0.255,874.78,872.08,0.974372]
[1757320539725,0.255,874.78,872.05,0.974372]
[1757320539926,0.5,875.05,872.24,0.974372]
[1757320540127,0.5,875.05,872.2,0.974372]
[1757320540328,0.5,875.25,872.15,0.974372]
[1757320540625,0.369,875.13,872.53,0.974372]
[1757320540829,0.369,875.13,872.6,0.974372]
[1757320541123,0.369,875.38,872.76,0.974372]
[1757320541329,0.396,875.52,872.68,0.974372]
[1757320541528,0.396,875.66,872.74,0.974372]
[1757320541723,0.446,875.97,872.96,0.974372]
[1757320541923,0.392,875.82,872.91,0.974372]
[1757320542224,0.392,875.82,872.61,1.5059524]
[1757320542225,0.419,875.7,872.89,0.974372]
[1757320542423,0.419,875.7,872.64,1.5059524]
[1757320542424,0.419,875.83,872.79,0.974372]
[1757320542630,0.339,875.72,872.77,0.974372]
[1757320542930,0.5,875.67,872.8,0.974372]
[1757320543126,0.422,875.33,872.75,0.974372]
[1757320543427,0.451,875.17,872.48,0.974372]
[1757320543625,0.451,875.17,872.38,0.974372]
[1757320543826,0.252,875.21,872.24,0.974372]
[1757320544126,0.394,875.09,872.25,0.974372]
[1757320544524,0.421,875.09,872.27,0.974372]
[1757320544725,0.421,875.09,872.22,0.974372]
[1757320544726,0.5,875.09,872.22,0.974372]
[1757320544926,0.451,875.08,872.22,0.974372]
[1757320545124,0.5,875.38,872.3,0.974372]
[1757320545329,0.5,874.97,872.13,0.974372]
[1757320545527,0.339,875.26,872.2,0.974372]
[1757320545726,0.393,875.26,872.39,0.974372]
[1757320545927,1.0102722,879.13,870.2,3.5646419]
[1757320545928,0.451,874.91,872.21,0.974372]
[1757320546127,0.394,874.82,872.16,0.974372]
[1757320546427,0.394,874.78,872.03,0.974372]
[1757320546630,0.421,874.78,871.91,0.974372]
[1757320546828,0.421,874.72,871.92,0.974372]
[1757320547035,0.478,874.69,871.85,0.974372]
[1757320547230,0.5,874.75,871.72,0.974372]
[1757320547430,0.5,874.75,871.71,0.974372]
[1757320547631,0.447,874.49,871.7,0.974372]
[1757320547827,0.447,874.55,871.7,0.974372]
[1757320548030,0.444,874.34,871.61,0.974372]
[1757320548229,3.5788161,880.06,871.4,0.974372]
[1757320548230,0.5,874.18,871.4,0.974372]
[1757320548430,0.255,874.22,871.44,0.974372]
[1757320548627,0.255,874.22,871.38,0.974372]
[1757320548830,0.369,874.29,871.32,0.974372]
[1757320549031,0.393,874.46,871.7,0.974372]
[1757320549228,0.339,874.52,871.72,0.974372]
[1757320549431,0.339,874.52,870.78,2.5461728]
[1757320549432,0.45,874.52,871.71,0.974372]
[1757320549629,0.426,874.52,871.67,0.974372]
[1757320549932,0.339,874.52,871.5,0.974372]
[1757320550230,1.0102722,878.72,871.41,0.974372]
[1757320550432,1.0102722,878.24,871.25,0.974372]
[1757320550633,1.0102722,878.18,871.19,0.974372]
[1757320550828,1.0102722,878.2,871.11,0.974372]
[1757320551033,1.0102722,878.05,870.97,0.974372]
[1757320551232,1.0102722,877.69,870.85,0.974372]
[1757320551433,1.0102722,877.91,870.65,0.974372]
[1757320551628,1.0102722,877.91,870.66,0.974372]
[1757320551830,1.0102722,877.97,870.6,0.974372]
[1757320552133,1.0102722,877.6,870.53,0.974372]
[1757320552333,1.0102722,877.59,870.45,0.974372]
[1757320552533,1.0102722,877.66,870.34,0.974372]
[1757320552731,1.0102722,877.82,870.47,0.974372]
[1757320553033,1.0102722,877.82,868.17,5.0923457]
[1757320553034,1.0102722,877.91,870.54,0.974372]
[1757320553232,1.0102722,877.93,870.5,0.974372]
[1757320553434,1.0102722,877.75,870.81,0.974372]
[1757320553734,1.0102722,877.98,870.75,0.974372]
[1757320553935,1.0102722,878.55,871.29,0.974372]
[1757320554234,1.0102722,878.06,871.06,0.974372]
[1757320554436,1.0102722,877.98,870.82,0.974372]
[1757320554735,1.0102722,877.99,870.63,0.974372]
[1757320554930,1.0102722,877.72,870.7,0.974372]
[1757320555134,0.369,873.5,870.8,0.974372]
[1757320555431,0.396,873.66,870.85,0.974372]
[1757320555633,0.5,873.66,870.7,0.974372]
[1757320555832,0.419,873.63,870.69,0.974372]
[1757320556131,0.396,873.66,870.71,0.974372]
[1757320556432,0.419,873.45,870.54,0.974372]
[1757320556632,0.449,873.45,870.52,0.974372]
[1757320556931,0.369,873.51,870.46,0.974372]
[1757320557130,0.392,873.29,870.39,0.974372]
[1757320557335,0.419,873.29,870.32,0.974372]
[1757320557630,0.5,873.32,870.32,0.974372]
[1757320557834,0.5,873.32,870.33,0.974372]
[1757320558031,0.5,873.28,870.33,0.974372]
[1757320558234,0.338,873.37,870.42,0.974372]
[1757320558435,0.338,873.37,870.41,0.974372]
[1757320558631,0.369,873.58,870.72,0.974372]
[1757320558931,0.395,874.02,870.91,0.974372]
[1757320559131,0.312,874.18,871.35,0.974372]
[1757320559336,0.421,874.34,871.61,0.974372]
[1757320559634,0.418,874.32,871.41,0.974372]
[1757320559835,0.392,874.32,871.51,0.974372]
[1757320560135,0.5,874.52,871.83,0.974372]
[1757320560335,0.338,874.65,871.75,0.974372]
[1757320560533,0.5,874.65,871.66,0.974372]
[1757320560833,0.421,874.35,871.49,0.974372]
[1757320561136,0.392,873.97,871.33,0.974372]
[1757320561435,0.387,874.32,871.37,0.974372]
[1757320561636,0.338,874.35,871.35,0.974372]
[1757320561832,0.312,874.35,871.69,0.974372]
[1757320562136,0.369,874.35,871.6,0.974372]
[1757320562332,0.39,874.51,871.05,0.974372]
[1757320562637,0.338,874.51,871.0,0.974372]
[1757320562837,0.418,874.36,871.01,0.974372]
[1757320563032,0.338,874.51,870.99,0.974372]
[1757320563235,0.421,874.51,871.07,0.974372]
[1757320563536,0.449,874.03,871.04,0.974372]
[1757320563738,1.0102722,876.72,870.56,0.974372]
[1757320563939,1.0102722,876.74,870.55,0.974372]
[1757320564132,1.0102722,876.74,870.5,0.974372]
[1757320564435,1.0102722,876.67,870.28,0.974372]
[1757320564637,1.0102722,876.53,870.15,0.974372]
[1757320564832,0.395,873.38,869.97,0.974372]
[1757320565033,0.395,873.38,870.09,0.974372]
[1757320565234,0.395,873.59,870.41,0.974372]
[1757320565434,0.392,873.34,870.34,0.974372]
[1757320565633,0.392,873.34,870.3,0.974372]
[1757320565832,0.338,873.59,870.28,0.974372]
[1757320566032,0.39,873.59,870.27,0.974372]
[1757320566237,0.391,873.26,870.33,0.974372]
[1757320566435,0.338,873.59,870.34,0.974372]
[1757320566639,0.338,873.59,870.29,0.974372]
[1757320566937,0.391,873.26,870.17,0.974372]
[1757320567140,0.338,873.59,870.22,0.974372]
[1757320567341,0.386,873.6,870.25,0.974372]
[1757320567536,0.443,873.57,870.25,0.974372]
[1757320567940,0.417,873.54,870.25,0.974372]
[1757320568136,0.417,873.51,870.24,0.974372]
[1757320568437,0.5,873.63,870.36,0.974372]
[1757320568639,0.5,873.63,870.43,0.974372]
[1757320568936,0.5,873.63,870.39,0.974372]
[1757320569239,0.453,873.49,870.48,0.974372]
[1757320569435,0.453,873.49,870.47,0.974372]
[1757320569740,0.453,873.49,870.35,0.974372]
[1757320569942,0.453,873.49,870.3,0.974372]
[1757320570137,0.5,873.49,870.3,0.974372]
[1757320570336,0.393,873.25,870.39,0.974372]
[1757320570636,0.393,873.25,870.37,0.974372]
[1757320570836,0.369,873.34,870.31,0.974372]
[1757320571037,0.39,873.4,870.62,0.974372]
[1757320571841,0.39,873.4,870.44,0.974372]
[1757320572140,0.339,873.49,870.48,0.974372]
[1757320572340,0.393,873.49,870.95,0.974372]
[1757320572542,0.39,873.25,870.94,0.974372]
[1757320572738,0.5,873.25,870.85,0.974372]
[1757320572942,0.447,873.22,870.86,0.974372]
[1757320573143,0.447,873.22,870.85,0.974372]
[1757320573345,0.474,873.22,870.85,0.974372]
[1757320573539,0.417,873.18,870.95,0.974372]
[1757320573740,0.39,873.08,870.93,0.974372]
[1757320573944,0.339,873.34,870.93,0.974372]
[1757320574246,0.393,873.34,870.94,0.974372]
[1757320574439,0.339,873.34,870.93,0.974372]
[1757320574740,0.42,873.34,870.98,0.974372]
[1757320574944,0.42,873.34,870.97,0.974372]
[1757320575144,0.339,873.34,870.97,0.974372]
[1757320575345,0.339,873.34,870.98,0.974372]
[1757320575546,0.339,873.34,871.09,0.974372]
[1757320575747,0.369,873.34,871.19,0.974372]
[1757320575949,0.396,873.5,871.32,0.974372]
[1757320576247,0.369,873.5,871.37,0.974372]
[1757320576546,0.369,873.5,871.44,0.974372]
[1757320576845,0.396,873.5,871.28,0.974372]
[1757320577046,0.396,873.5,871.24,0.974372]
[1757320577246,0.48,873.5,871.23,0.974372]
[1757320577442,0.5,873.5,871.22,0.974372]
[1757320577840,0.42,873.5,871.22,0.974372]
[1757320578042,0.339,873.5,871.23,0.974372]
[1757320578246,0.423,873.5,871.2,0.974372]
[1757320578547,0.5,873.5,871.24,0.974372]
[1757320578843,0.451,873.5,871.24,0.974372]
[1757320579042,0.339,873.5,871.24,0.974372]
[1757320579248,0.39,873.23,871.26,0.974372]
[1757320579443,0.39,873.23,871.31,0.974372]
[1757320579747,0.397,873.5,871.36,0.974372]
[1757320579948,0.34,873.5,871.33,0.974372]
[1757320580144,0.453,873.5,871.31,0.974372]
[1757320580349,0.5,873.5,871.25,0.974372]
[1757320580550,0.417,873.47,871.26,0.974372]
[1757320580746,0.454,873.5,871.26,0.974372]
[1757320580950,0.454,873.5,871.25,0.974372]
[1757320581150,0.454,873.5,871.24,0.974372]
[1757320581352,0.5,873.47,871.36,0.974372]
[1757320581547,0.454,873.5,871.36,0.974372]
[1757320581852,0.454,873.5,871.34,0.974372]
[1757320582051,0.482,873.5,871.33,0.974372]
[1757320582248,0.482,873.5,871.28,0.974372]
[1757320582552,0.5,873.35,871.21,0.974372]
[1757320582852,0.388,873.22,871.21,0.974372]
[1757320583049,0.369,873.35,871.4,0.974372]
[1757320583253,0.5,873.56,871.5,0.974372]
[1757320583452,0.338,873.73,871.72,0.974372]
[1757320583649,0.478,873.73,871.74,0.974372]
[1757320583849,0.5,873.59,871.59,0.974372]
[1757320584048,0.416,873.17,871.54,0.974372]
[1757320584252,0.388,873.17,871.48,0.974372]
[1757320584451,0.388,873.17,871.52,0.974372]
[1757320584653,0.388,873.17,871.48,0.974372]
[1757320584947,0.443,873.64,871.37,0.974372]
[1757320585152,0.452,873.45,871.36,0.974372]
[1757320585352,0.388,873.17,871.39,0.974372]
[1757320585553,0.5,873.72,871.42,0.974372]
[1757320585854,0.452,873.56,871.57,0.974372]
[1757320586051,0.34,873.56,871.57,0.974372]
[1757320586248,0.34,873.56,871.69,0.974372]
[1757320586850,0.34,873.56,871.66,0.974372]
[1757320587052,0.34,873.56,871.57,0.974372]
[1757320587249,0.388,873.25,871.53,0.974372]
[1757320587452,0.388,873.25,871.25,1.5059524]
[1757320587453,0.34,873.56,871.58,0.974372]
[1757320587754,0.34,873.56,871.63,0.974372]
[1757320588150,0.387,873.33,871.63,0.974372]
[1757320588453,1.5154084,876.42,870.2,2.5461728]
[1757320588454,0.34,873.56,871.65,0.974372]
[1757320588654,0.394,873.56,871.65,0.974372]
[1757320588850,0.475,873.56,871.65,0.974372]
[1757320589150,0.34,873.56,871.65,0.974372]
[1757320589454,0.34,873.56,871.87,0.974372]
[1757320589655,0.338,873.73,872.01,0.974372]
[1757320589954,0.5,873.73,872.0,0.974372]
[1757320590149,0.422,873.73,872.0,0.974372]
[1757320590352,0.422,873.73,872.03,0.974372]
[1757320590554,0.422,873.73,871.12,2.5461728]
[1757320590555,0.422,873.73,871.9,0.974372]
[1757320590755,0.422,873.73,871.87,0.974372]
[1757320590954,0.422,873.73,871.88,0.974372]
[1757320591355,0.422,873.73,871.92,0.974372]
[1757320591655,0.495,873.72,871.91,0.974372]
[1757320591856,0.496,873.66,871.83,0.974372]
[1757320592152,0.422,873.73,871.9,0.974372]
[1757320592353,0.422,873.73,870.45,2.5461728]
[1757320592354,0.365,873.73,871.89,0.974372]
[1757320592658,0.419,873.75,871.88,0.974372]
[1757320592858,0.419,873.75,871.95,0.974372]
[1757320593058,0.5,873.75,872.05,0.974372]
[1757320593258,0.5,873.75,872.06,0.974372]
[1757320593458,0.5,873.75,872.07,0.974372]
[1757320593861,0.5,873.75,872.11,0.974372]
[1757320594160,0.442,873.72,872.11,0.974372]
[1757320594361,0.5,873.72,872.16,0.974372]
[1757320594562,0.499,873.74,872.15,0.974372]
[1757320594758,0.496,873.71,872.2,0.974372]
[1757320594962,0.469,873.62,872.1,0.974372]
[1757320595161,0.388,873.26,872.06,0.974372]
[1757320595363,0.388,873.26,872.08,0.974372]
[1757320595563,0.388,873.26,870.91,2.5461728]
[1757320595564,0.419,873.58,872.07,0.974372]
[1757320595861,0.419,873.58,871.72,1.5059524]
[1757320595862,0.419,873.58,872.0,0.974372]
[1757320596059,0.419,873.58,872.29,0.974372]
[1757320596259,0.419,873.58,872.3,0.974372]
[1757320596460,0.5,873.58,872.37,0.974372]
[1757320596664,0.419,873.58,872.37,0.974372]
[1757320596960,0.5,873.58,872.18,0.974372]
[1757320597164,0.415,873.56,872.11,0.974372]
[1757320597364,0.415,873.56,872.13,0.974372]
[1757320597564,0.415,873.56,872.11,0.974372]
[1757320598061,0.388,873.53,872.11,0.974372]
[1757320598260,0.415,873.53,872.11,0.974372]
[1757320598465,0.5,873.58,872.09,0.974372]
[1757320598764,0.5,873.58,872.22,0.974372]
[1757320598961,0.415,873.17,872.21,0.974372]
[1757320599162,0.415,873.17,872.17,0.974372]
[1757320599364,0.415,873.17,872.19,0.974372]
[1757320599566,0.5,873.58,872.21,0.974372]
[1757320599762,0.419,873.58,872.22,0.974372]
[1757320600263,0.466,873.42,872.24,0.974372]
[1757320600462,0.419,873.58,872.13,0.974372]
[1757320600666,0.473,873.58,872.13,0.974372]
[1757320600962,0.412,873.47,872.12,0.974372]
[1757320601162,0.5,873.46,872.12,0.974372]
[1757320601367,0.439,873.42,872.17,0.974372]
[1757320601566,0.419,873.42,872.17,0.974372]
[1757320601867,0.419,873.42,872.13,0.974372]
[1757320602068,0.419,873.42,872.07,0.974372]
[1757320602266,0.5,873.36,871.8,0.974372]
[1757320602563,0.5,873.32,871.76,0.974372]
[1757320602862,0.499,873.32,871.75,0.974372]
[1757320603367,0.499,873.32,871.8,0.974372]
[1757320603665,0.499,873.29,871.81,0.974372]
[1757320603961,0.472,873.26,871.88,0.974372]
[1757320604160,0.474,873.39,871.92,0.974372]
[1757320604364,0.474,873.39,871.97,0.974372]
[1757320604562,0.5,873.39,871.97,0.974372]
[1757320604760,0.5,873.39,872.0,0.974372]
[1757320605066,0.392,873.15,872.0,0.974372]
[1757320605265,0.392,873.15,872.03,0.974372]
[1757320605468,0.5,873.39,872.03,0.974372]
[1757320605762,0.5,873.22,871.91,0.974372]
[1757320605964,0.5,873.22,871.89,0.974372]
[1757320606166,0.5,873.22,871.9,0.974372]
[1757320606367,0.5,873.22,871.97,0.974372]
[1757320606765,0.5,873.22,871.95,0.974372]
[1757320607073,0.446,873.2,871.93,0.974372]
[1757320607268,0.419,873.2,871.96,0.974372]
[1757320607469,0.446,873.2,871.95,0.974372]
[1757320607665,0.392,873.17,871.95,0.974372]
[1757320607865,0.419,873.17,871.95,0.974372]
[1757320608066,0.392,873.17,871.96,0.974372]
[1757320608466,0.446,873.17,871.89,0.974372]
[1757320608770,0.419,873.14,871.89,0.974372]
[1757320608969,0.392,873.14,871.9,0.974372]
[1757320609472,0.413,873.11,871.95,0.974372]
[1757320610271,0.413,873.11,872.0,0.974372]
[1757320610471,0.413,873.11,871.96,0.974372]
[1757320610671,0.413,873.11,872.02,0.974372]
[1757320611270,0.419,873.22,872.31,0.974372]
[1757320611574,0.5,873.22,872.32,0.974372]
[1757320611772,0.5,873.41,872.28,0.974372]
[1757320611968,0.5,873.41,872.26,0.974372]
[1757320612167,0.5,873.41,872.22,0.974372]
[1757320612472,0.5,873.41,871.96,1.5059524]
[1757320612473,0.5,873.41,872.41,0.974372]
[1757320612768,0.5,873.41,872.39,0.974372]
[1757320612968,0.5,873.41,872.41,0.974372]
[1757320613372,0.5,873.41,872.38,0.974372]
[1757320613769,0.5,873.41,872.36,0.974372]
[1757320614370,0.5,873.41,872.37,0.974372]
[1757320614768,0.5,873.41,872.45,0.974372]
[1757320614968,0.5,873.41,872.47,0.974372]
[1757320615375,0.5,873.41,872.5,0.974372]
[1757320615670,0.5,873.41,872.48,0.974372]
[1757320616076,0.5,873.41,872.47,0.974372]
[1757320616877,0.5,873.41,872.46,0.974372]
[1757320617373,3.5788161,876.69,872.44,0.974372]
[1757320617374,0.412,873.32,872.44,0.974372]
[1757320617577,0.412,873.32,872.39,0.974372]
[1757320618382,0.412,873.32,872.38,0.974372]
[1757320619181,0.412,873.32,872.52,0.974372]
[1757320619377,0.474,873.35,872.66,0.974372]
[1757320620383,0.474,873.35,872.64,0.974372]
[1757320620682,0.447,873.35,872.74,0.974372]
[1757320620882,0.5,873.53,872.72,0.974372]
[1757320621482,0.5,873.53,872.77,0.974372]
[1757320621679,0.5,873.53,872.89,0.974372]
[1757320621978,0.5,873.53,872.85,0.974372]
[1757320622283,0.5,873.53,872.79,0.974372]
[1757320622578,0.5,873.75,873.06,0.974372]
[1757320622782,0.5,873.75,873.07,0.974372]
[1757320623083,0.474,873.75,873.07,0.974372]
[1757320623383,0.5,873.75,872.97,0.974372]
[1757320623579,0.474,873.75,873.05,0.974372]
[1757320623880,0.5,873.75,873.06,0.974372]
[1757320624080,0.447,873.75,873.07,0.974372]
[1757320624278,0.474,873.75,873.06,0.974372]
[1757320624483,0.392,873.75,873.15,1.5059524]
[1757320624682,0.5,874.3,873.5,0.974372]
[1757320624987,0.393,874.1,873.28,1.5059524]
[1757320625279,0.419,874.1,873.25,1.5059524]
[1757320625479,0.419,874.1,873.23,1.5059524]
[1757320625677,0.419,874.1,873.08,1.5059524]
[1757320625882,0.419,874.1,873.05,1.5059524]
[1757320626384,0.419,874.1,873.02,1.5059524]
[1757320626578,0.419,874.1,873.03,1.5059524]
[1757320626981,0.392,874.1,873.03,1.5059524]
[1757320627179,0.392,874.1,873.0,1.5059524]
[1757320627683,0.392,874.1,872.94,1.5059524]
[1757320628080,0.392,874.1,872.93,1.5059524]
[1757320628279,0.392,874.1,872.92,1.5059524]
[1757320628580,0.392,874.1,872.89,1.5059524]
[1757320628784,0.5,874.1,872.89,1.5059524]
[1757320629282,0.5,874.1,871.71,2.5461728]
[1757320629283,0.5,874.1,872.99,1.5059524]
[1757320629486,0.5,874.68,873.23,1.5059524]
[1757320629686,0.392,874.43,873.23,1.5059524]
[1757320630386,0.392,874.43,873.22,1.5059524]
[1757320630583,0.392,874.43,873.19,1.5059524]
[1757320630886,0.5,875.0,873.57,1.5059524]
[1757320631084,0.392,874.64,873.57,1.5059524]
[1757320631286,0.392,874.64,873.44,1.5059524]
[1757320631487,0.392,874.64,873.42,1.5059524]
[1757320631986,0.392,874.64,873.37,1.5059524]
[1757320632287,0.392,874.64,873.19,1.5059524]
[1757320632588,0.392,874.64,873.14,1.5059524]
[1757320632787,0.392,874.64,873.1,1.5059524]
[1757320632986,0.392,874.64,873.05,1.5059524]
[1757320633486,0.392,874.64,872.97,1.5059524]
[1757320633686,0.392,874.64,872.95,1.5059524]
[1757320633982,0.392,874.64,872.96,1.5059524]
[1757320634387,0.392,874.64,872.94,1.5059524]
[1757320634581,0.261,874.55,872.95,1.5059524]
[1757320634782,0.261,874.55,872.96,1.5059524]
[1757320635285,0.261,874.55,872.91,1.5059524]
[1757320635487,0.261,874.55,872.9,1.5059524]
[1757320635782,0.261,874.55,873.22,1.5059524]
[1757320636283,0.5,875.31,873.27,1.5059524]
[1757320636483,0.261,874.94,873.41,1.5059524]
[1757320636786,0.261,874.94,871.89,3.5646419]
[1757320636787,0.261,874.94,873.57,1.5059524]
[1757320637086,0.261,874.94,873.49,1.5059524]
[1757320637287,0.261,874.94,873.46,1.5059524]
[1757320637688,0.261,874.94,873.43,1.5059524]
[1757320638287,0.261,874.94,873.38,1.5059524]
[1757320638587,0.261,874.94,873.33,1.5059524]
[1757320638783,0.261,874.94,873.31,1.5059524]
[1757320639084,0.261,874.94,873.38,1.5059524]
[1757320639287,0.261,874.94,873.51,1.5059524]
[1757320639588,0.261,875.23,873.61,1.5059524]
[1757320640287,0.261,875.23,873.63,1.5059524]
[1757320640582,0.261,875.41,873.61,1.5059524]
[1757320640784,0.261,875.41,873.62,1.5059524]
[1757320640985,0.261,875.41,873.59,1.5059524]
[1757320641487,0.261,875.41,873.58,1.5059524]
[1757320641686,0.261,875.41,873.59,1.5059524]
[1757320642382,0.261,875.53,873.79,1.5059524]
[1757320642592,0.417,875.66,873.74,1.5059524]
[1757320642888,0.39,875.26,873.42,1.5059524]
[1757320643187,0.39,875.26,873.3,1.5059524]
[1757320643388,0.39,875.26,873.31,1.5059524]
[1757320643789,0.39,875.26,873.3,1.5059524]
[1757320644088,0.39,875.26,873.31,1.5059524]
[1757320644285,0.39,875.26,872.14,2.5461728]
[1757320644286,0.39,875.26,873.28,1.5059524]
[1757320644485,0.39,875.26,873.27,1.5059524]
[1757320644886,0.39,875.26,873.31,1.5059524]
[1757320645590,0.39,875.26,873.28,1.5059524]
[1757320646287,0.39,875.26,873.26,1.5059524]
[1757320646689,0.39,875.26,873.29,1.5059524]
[1757320647089,0.39,875.26,873.35,1.5059524]
[1757320647289,0.39,875.26,872.23,2.5461728]
[1757320647290,0.39,875.26,873.27,1.5059524]
[1757320647489,0.39,875.26,873.21,1.5059524]